fUSD/lending_fUSD_20240420
["ID","MTS","AMOUNT","RATE_DAILY","PERIOD"]
[323011119,1713587441726,-500.0,0.00015068,2]
[323011120,1713587441737,-500.0,0.00015068,2]
[323011121,1713587441748,-500.0,0.00015068,2]
[323011122,1713587441765,-1602.67,0.00015068,2]
[323011123,1713587441783,-500.0,0.00015068,2]
[323011124,1713587441793,-692.35,0.00015068,2]
[323011125,1713587441802,-500.0,0.00015068,2]
[323011126,1713587441813,-732.75,0.00015068,2]
[323011127,1713587441822,-500.0,0.00015068,2]
[323011128,1713587441831,-500.0,0.00015068,2]
[323011129,1713587441840,-500.0,0.00015068,2]
[323011130,1713587441849,-500.0,0.00015068,2]
[323011131,1713587441858,-1577.61,0.00015068,2]
[323011132,1713587441867,-500.0,0.00015068,2]
[323011133,1713587441878,-500.0,0.00015068,2]
[323011134,1713587441888,-1155.86,0.00015068,2]
[323011135,1713587441898,-500.0,0.00015068,2]
[323011136,1713587441907,-500.0,0.00015068,2]
[323011137,1713587441916,-500.0,0.00015068,2]
[323011138,1713587441925,-500.0,0.00015068,2]
[323011139,1713587441934,-150.0,0.00015068,2]
[323011140,1713587441944,-1162.13,0.00015068,2]
[323011141,1713587441953,-500.0,0.00015068,2]
[323011142,1713587441962,-500.0,0.00015068,2]
[323011143,1713587441972,-1473.01,0.00015068,2]
[323011144,1713587441982,-814.94,0.00015068,2]
[323011145,1713587441991,-1551.09,0.00015068,2]
[323011146,1713587442000,-500.4,0.00015068,2]
[323011147,1713587442010,-500.0,0.00015068,2]
[323011148,1713587442019,-500.0,0.00015068,2]
[323011149,1713587442028,-756.98,0.00015068,2]
[323011150,1713587442037,-500.0,0.00015068,2]
[323011151,1713587442046,-575.79,0.00015068,2]
[323011152,1713587442055,-1497.23,0.00015068,2]
[323011153,1713587442065,-500.0,0.00015068,2]
[323011154,1713587442074,-500.0,0.00015068,2]
[323011155,1713587442083,-2663.45,0.00015068,2]
[323011156,1713587442092,-500.0,0.00015068,2]
[323011157,1713587442101,-500.0,0.00015068,2]
[323011158,1713587442110,-609.23,0.00015068,2]
[323011159,1713587442119,-500.0,0.00015068,2]
[323011160,1713587442129,-500.0,0.00015068,2]
[323011161,1713587442137,-1500.19,0.00015068,2]
[323011162,1713587442146,-829.51,0.00015068,2]
[323011163,1713587442156,-665.51,0.00015068,2]
[323011164,1713587442165,-1165.57,0.00015068,2]
[323011165,1713587442175,-500.0,0.00015068,2]
[323011166,1713587442184,-500.0,0.00015068,2]
[323011167,1713587442193,-575.62,0.00015068,2]
[323011168,1713587442203,-500.0,0.00015068,2]
[323011169,1713587442212,-1016.09,0.00015068,2]
[323011170,1713587442221,-1343.8,0.00015068,2]
[323011171,1713587442231,-500.0,0.00015068,2]
[323011173,1713587442240,-1040.09,0.00015068,2]
[323011175,1713587442249,-500.0,0.00015068,2]
[323011176,1713587442259,-419.82773061,0.00015068,2]
[323011177,1713587442267,-500.0,0.00015068,2]
[323011178,1713587442276,-604.21,0.00015068,2]
[323011179,1713587442285,-2737.71,0.00015068,2]
[323011180,1713587442294,-807.02,0.00015068,2]
[323011181,1713587442303,-500.0,0.00015068,2]
[323011182,1713587442314,-715.6,0.00015068,2]
[323011183,1713587442323,-1278.86,0.00015068,2]
[323011184,1713587442333,-500.0,0.00015068,2]
[323011185,1713587442342,-788.23,0.00015068,2]
[323011186,1713587442351,-500.0,0.00015068,2]
[323011187,1713587442361,-650.41,0.00015068,2]
[323011188,1713587442370,-500.0,0.00015068,2]
[323011189,1713587442380,-1588.32,0.00015068,2]
[323011190,1713587442390,-500.0,0.00015068,2]
[323011191,1713587442400,-1524.76,0.00015068,2]
[323011192,1713587442411,-500.0,0.00015068,2]
[323011193,1713587442421,-500.0,0.00015068,2]
[323011194,1713587442430,-500.0,0.00015068,2]
[323011195,1713587442440,-500.0,0.00015068,2]
[323011196,1713587442450,-2479.16,0.00015068,2]
[323011197,1713587442459,-500.0,0.00015068,2]
[323011198,1713587442468,-1955.88,0.00015068,2]
[323011199,1713587442478,-652.8,0.00015068,2]
[323011200,1713587442487,-500.0,0.00015068,2]
[323011201,1713587442496,-500.0,0.00015068,2]
[323011202,1713587442506,-1989.68,0.00015068,2]
[323011203,1713587442515,-500.0,0.00015068,2]
[323011204,1713587442524,-542.86,0.00015068,2]
[323011205,1713587442533,-500.0,0.00015068,2]
[323011206,1713587442543,-739.89,0.00015068,2]
[323011207,1713587442553,-500.0,0.00015068,2]
[323011208,1713587442563,-1193.79,0.00015068,2]
[323011209,1713587442571,-1432.16,0.00015068,2]
[323011211,1713587442581,-500.0,0.00015068,2]
[323011212,1713587442590,-5908.29,0.00015068,2]
[323011213,1713587442599,-500.0,0.00015068,2]
[323011214,1713587442608,-843.18,0.00015068,2]
[323011215,1713587442617,-500.0,0.00015068,2]
[323011216,1713587442626,-500.0,0.00015068,2]
[323011217,1713587442635,-1155.5,0.00015068,2]
[323011218,1713587442644,-617.96,0.00015068,2]
[323011219,1713587442653,-9449.66,0.00015068,2]
[323011220,1713587442663,-22613.68,0.00015068,2]
[323011221,1713587442672,-327.48037992,0.00015068,2]
[323011222,1713587442681,-500.0,0.00015068,2]
[323011223,1713587442692,-1151.95,0.00015068,2]
[323011224,1713587442702,-1198.44,0.00015068,2]
[323011225,1713587442711,-500.0,0.00015068,2]
[323011226,1713587442720,-500.0,0.00015068,2]
[323011227,1713587442729,-500.0,0.00015068,2]
[323011228,1713587442739,-500.0,0.00015068,2]
[323011229,1713587442748,-500.0,0.00015068,2]
[323011230,1713587442757,-974.73,0.00015068,2]
[323011231,1713587442768,-500.0,0.00015068,2]
[323011232,1713587442777,-500.0,0.00015068,2]
[323011233,1713587442786,-999.7,0.00015068,2]
[323011234,1713587442795,-2616.62,0.00015068,2]
[323011235,1713587442805,-1829.49,0.00015068,2]
[323011236,1713587442815,-502.9,0.00015068,2]
[323011237,1713587442824,-500.0,0.00015068,2]
[323011238,1713587442833,-1137.71,0.00015068,2]
[323011239,1713587442842,-714.41,0.00015068,2]
[323011240,1713587442852,-577.96,0.00015068,2]
[323011241,1713587442861,-500.0,0.00015068,2]
[323011242,1713587442871,-543.95,0.00015068,2]
[323011243,1713587442880,-500.0,0.00015068,2]
[323011244,1713587442889,-982.33,0.00015068,2]
[323011245,1713587442899,-24911.8,0.00015068,2]
[323011246,1713587442909,-500.0,0.00015068,2]
[323011247,1713587442919,-502.80113783,0.00015068,2]
[323011248,1713587442928,-595.82,0.00015068,2]
[323011249,1713587442938,-500.0,0.00015068,2]
[323011250,1713587442948,-16793.07,0.00015068,2]
[323011251,1713587442958,-2010.39,0.00015068,2]
[323011252,1713587442967,-500.0,0.00015068,2]
[323011253,1713587442976,-2065.14,0.00015068,2]
[323011254,1713587442986,-500.0,0.00015068,2]
[323011255,1713587442995,-500.0,0.00015068,2]
[323011256,1713587443005,-2229.51,0.00015068,2]
[323011257,1713587443014,-999.99,0.00015068,2]
[323011258,1713587443023,-994.7,0.00015068,2]
[323011259,1713587443032,-612.24112044,0.00015068,2]
[323011260,1713587443042,-500.0,0.00015068,2]
[323011261,1713587443051,-15854.94,0.00015068,2]
[323011262,1713587443063,-726.33,0.00015068,2]
[323011264,1713587443072,-1193.85,0.00015068,2]
[323011265,1713587443082,-583.62,0.00015068,2]
[323011266,1713587443091,-2925.69,0.00015068,2]
[323011267,1713587443101,-500.0,0.00015068,2]
[323011268,1713587443110,-755.21,0.00015068,2]
[323011269,1713587443120,-500.0,0.00015068,2]
[323011270,1713587443129,-500.0,0.00015068,2]
[323011271,1713587443139,-1543.63,0.00015068,2]
[323011272,1713587443148,-653.75,0.00015068,2]
[323011274,1713587443157,-1284.28,0.00015068,2]
[323011276,1713587443167,-1858.72,0.00015068,2]
[323011277,1713587443176,-1989.87,0.00015068,2]
[323011278,1713587443185,-1412.09,0.00015068,2]
[323011279,1713587443195,-2569.0,0.00015068,2]
[323011280,1713587443204,-695.06,0.00015068,2]
[323011282,1713587443212,-500.0,0.00015068,2]
[323011283,1713587443222,-700.92,0.00015068,2]
[323011285,1713587443231,-1111.37,0.00015068,2]
[323011286,1713587443240,-500.0,0.00015068,2]
[323011287,1713587443250,-500.0,0.00015068,2]
[323011288,1713587443259,-2625.86,0.00015068,2]
[323011289,1713587443268,-500.0,0.00015068,2]
[323011290,1713587443277,-900.99,0.00015068,2]
[323011291,1713587443286,-500.0,0.00015068,2]
[323011292,1713587443295,-1168.36,0.00015068,2]
[323011293,1713587443304,-500.0,0.00015068,2]
[323011294,1713587443317,-5221.59,0.00015068,2]
[323011295,1713587443327,-5228.35,0.00015068,2]
[323011296,1713587443336,-2437.99,0.00015068,2]
[323011297,1713587443345,-500.0,0.00015068,2]
[323011298,1713587443355,-558.74,0.00015068,2]
[323011299,1713587443364,-1403.98,0.00015068,2]
[323011300,1713587443373,-1947.61,0.00015068,2]
[323011301,1713587443383,-500.0,0.00015068,2]
[323011302,1713587443392,-500.0,0.00015068,2]
[323011303,1713587443402,-1837.38,0.00015068,2]
[323011304,1713587443411,-500.0,0.00015068,2]
[323011305,1713587443420,-500.0,0.00015068,2]
[323011306,1713587443430,-500.0,0.00015068,2]
[323011307,1713587443439,-607.03,0.00015068,2]
[323011308,1713587443448,-500.0,0.00015068,2]
[323011309,1713587443457,-500.0,0.00015068,2]
[323011310,1713587443466,-20635.11,0.00015068,2]
[323011311,1713587443475,-500.0,0.00015068,2]
[323011312,1713587443485,-500.0,0.00015068,2]
[323011313,1713587443494,-1014.84,0.00015068,2]
[323011314,1713587443503,-3082.15,0.00015068,2]
[323011315,1713587443512,-500.0,0.00015068,2]
[323011316,1713587443521,-744.81,0.00015068,2]
[323011317,1713587443530,-500.0,0.00015068,2]
[323011318,1713587443539,-500.0,0.00015068,2]
[323011319,1713587443548,-618.48,0.00015068,2]
[323011320,1713587443560,-1343.26,0.00015068,2]
[323011321,1713587443568,-523.62,0.00015068,2]
[323011322,1713587443578,-1795.5,0.00015068,2]
[323011323,1713587443587,-2721.98,0.00015068,2]
[323011324,1713587443597,-500.0,0.00015068,2]
[323011325,1713587443606,-500.0,0.00015068,2]
[323011326,1713587443615,-500.0,0.00015068,2]
[323011327,1713587443624,-500.0,0.00015068,2]
[323011328,1713587443634,-885.37,0.00015068,2]
[323011329,1713587443643,-2926.31,0.00015068,2]
[323011330,1713587443652,-666.56,0.00015068,2]
[323011331,1713587443662,-1534.63,0.00015068,2]
[323011332,1713587443671,-2022.97,0.00015068,2]
[323011333,1713587443680,-3244.44,0.00015068,2]
[323011334,1713587443695,-1156.38,0.00015068,2]
[323011335,1713587443704,-500.0,0.00015068,2]
[323011336,1713587443713,-544.73,0.00015068,2]
[323011337,1713587443723,-2203.23,0.00015068,2]
[323011338,1713587443733,-793.6,0.00015068,2]
[323011339,1713587443742,-943.09,0.00015068,2]
[323011340,1713587443752,-500.0,0.00015068,2]
[323011341,1713587443761,-500.0,0.00015068,2]
[323011342,1713587443770,-500.0,0.00015068,2]
[323011343,1713587443780,-5333.25,0.00015068,2]
[323011344,1713587443790,-889.65,0.00015068,2]
[323011345,1713587443799,-500.0,0.00015068,2]
[323011346,1713587443809,-2815.96,0.00015068,2]
[323011347,1713587443820,-568.37,0.00015068,2]
[323011348,1713587443832,-10049.11,0.00015068,2]
[323011349,1713587443842,-500.0,0.00015068,2]
[323011350,1713587443853,-1150.64,0.00015068,2]
[323011351,1713587443862,-500.0,0.00015068,2]
[323011352,1713587443872,-576.56,0.00015068,2]
[323011353,1713587443882,-500.0,0.00015068,2]
[323011354,1713587443892,-2000.46,0.00015068,2]
[323011355,1713587443902,-500.0,0.00015068,2]
[323011356,1713587443911,-500.0,0.00015068,2]
[323011357,1713587443921,-1332.96,0.00015068,2]
[323011358,1713587443931,-876.88,0.00015068,2]
[323011359,1713587443941,-500.0,0.00015068,2]
[323011360,1713587443951,-1482.41,0.00015068,2]
[323011361,1713587443961,-500.0,0.00015068,2]
[323011362,1713587443972,-500.0,0.00015068,2]
[323011363,1713587443981,-581.6,0.00015068,2]
[323011364,1713587443990,-607.24,0.00015068,2]
[323011365,1713587444000,-5583.23,0.00015068,2]
[323011366,1713587444009,-585.05,0.00015068,2]
[323011367,1713587444018,-2162.13,0.00015068,2]
[323011368,1713587444027,-500.0,0.00015068,2]
[323011369,1713587444037,-724.59,0.00015068,2]
[323011370,1713587444047,-861.95,0.00015068,2]
[323011371,1713587444056,-500.0,0.00015068,2]
[323011372,1713587444067,-1022.14,0.00015068,2]
[323011373,1713587444076,-623.05,0.00015068,2]
[323011374,1713587444085,-500.0,0.00015068,2]
[323011375,1713587444094,-500.0,0.00015068,2]
[323011376,1713587444103,-576.29,0.00015068,2]
[323011377,1713587444113,-500.0,0.00015068,2]
[323011378,1713587444122,-500.0,0.00015068,2]
[323011379,1713587444132,-500.0,0.00015068,2]
[323011380,1713587444141,-792.61,0.00015068,2]
[323011381,1713587444150,-500.0,0.00015068,2]
[323011382,1713587444159,-1738.37,0.00015068,2]
[323011383,1713587444170,-569.79,0.00015068,2]
[323011384,1713587444180,-739.94,0.00015068,2]
[323011385,1713587444190,-500.0,0.00015068,2]
[323011386,1713587444200,-573.45,0.00015068,2]
[323011387,1713587444209,-1173.85,0.00015068,2]
[323011388,1713587444218,-518.24427123,0.00015068,2]
[323011389,1713587444227,-818.01,0.00015068,2]
[323011390,1713587444237,-1546.41,0.00015068,2]
[323011391,1713587444246,-500.0,0.00015068,2]
[323011392,1713587444255,-500.0,0.00015068,2]
[323011393,1713587444265,-2061.48,0.00015068,2]
[323011394,1713587444274,-1459.35,0.00015068,2]
[323011395,1713587444283,-3675.79,0.00015068,2]
[323011396,1713587444293,-1142.36,0.00015068,2]
[323011397,1713587444510,-698.45,0.00015068,2]
[323011398,1713587444547,-500.0,0.00015068,2]
[323011399,1713587444556,-500.0,0.00015068,2]
[323011400,1713587444567,-1183.98,0.00015068,2]
[323011401,1713587444576,-500.0,0.00015068,2]
[323011402,1713587444585,-500.0,0.00015068,2]
[323011403,1713587444595,-1416.3,0.00015068,2]
[323011404,1713587444604,-500.0,0.00015068,2]
[323011405,1713587444613,-3892.61,0.00015068,2]
[323011406,1713587444623,-504.29213146,0.00015068,2]
[323011407,1713587444632,-961.22,0.00015068,2]
[323011408,1713587444641,-543.91,0.00015068,2]
[323011409,1713587444650,-500.0,0.00015068,2]
[323011410,1713587444659,-513.42291167,0.00015068,2]
[323011411,1713587444668,-500.0,0.00015068,2]
[323011412,1713587444678,-522.29149905,0.00015068,2]
[323011413,1713587444687,-500.0,0.00015068,2]
[323011414,1713587444699,-1526.01,0.00015068,2]
[323011415,1713587444709,-500.0,0.00015068,2]
[323011416,1713587444718,-805.06,0.00015068,2]
[323011417,1713587444727,-2700.01,0.00015068,2]
[323011418,1713587444738,-500.0,0.00015068,2]
[323011419,1713587444749,-500.0,0.00015068,2]
[323011420,1713587444759,-1101.39,0.00015068,2]
[323011421,1713587444772,-13124.8,0.00015068,2]
[323011422,1713587444783,-855.22,0.00015068,2]
[323011423,1713587444794,-2543.71,0.00015068,2]
[323011424,1713587444803,-500.0,0.00015068,2]
[323011425,1713587444814,-1737.76,0.00015068,2]
[323011426,1713587444823,-2224.41,0.00015068,2]
[323011427,1713587444832,-500.0,0.00015068,2]
[323011428,1713587444842,-1499.88,0.00015068,2]
[323011429,1713587444851,-816.48,0.00015068,2]
[323011430,1713587444860,-500.0,0.00015068,2]
[323011431,1713587444870,-501.5541157,0.00015068,2]
[323011432,1713587444879,-2262.14,0.00015068,2]
[323011433,1713587444891,-1222.46,0.00015068,2]
[323011434,1713587444900,-2139.91,0.00015068,2]
[323011435,1713587444911,-736.06,0.00015068,2]
[323011436,1713587444920,-2892.81,0.00015068,2]
[323011437,1713587444929,-500.0,0.00015068,2]
[323011438,1713587444939,-500.0,0.00015068,2]
[323011439,1713587444948,-1647.58,0.00015068,2]
[323011440,1713587444960,-1431.16,0.00015068,2]
[323011441,1713587444970,-500.0,0.00015068,2]
[323011442,1713587444981,-500.0,0.00015068,2]
[323011443,1713587444990,-900.42,0.00015068,2]
[323011444,1713587445000,-760.46,0.00015068,2]
[323011445,1713587445010,-669.94,0.00015068,2]
[323011446,1713587445020,-500.0,0.00015068,2]
[323011447,1713587445029,-751.44,0.00015068,2]
[323011448,1713587445038,-718.58,0.00015068,2]
[323011449,1713587445048,-2295.53,0.00015068,2]
[323011450,1713587445057,-2911.11,0.00015068,2]
[323011451,1713587445068,-505.62,0.00015068,2]
[323011452,1713587445077,-760.86,0.00015068,2]
[323011453,1713587445087,-500.0,0.00015068,2]
[323011454,1713587445096,-1310.51,0.00015068,2]
[323011455,1713587445106,-1405.38,0.00015068,2]
[323011456,1713587445116,-500.0,0.00015068,2]
[323011457,1713587445126,-500.0,0.00015068,2]
[323011458,1713587445135,-1785.69,0.00015068,2]
[323011459,1713587445144,-711.28,0.00015068,2]
[323011460,1713587445153,-500.0,0.00015068,2]
[323011461,1713587445163,-787.55,0.00015068,2]
[323011462,1713587445171,-500.0,0.00015068,2]
[323011463,1713587445181,-1846.17,0.00015068,2]
[323011464,1713587445190,-500.0,0.00015068,2]
[323011465,1713587445199,-1741.33,0.00015068,2]
[323011466,1713587445209,-1141.03,0.00015068,2]
[323011467,1713587445218,-400.0,0.00015068,2]
[323011468,1713587445227,-592.9,0.00015068,2]
[323011469,1713587445236,-2110.61,0.00015068,2]
[323011470,1713587445245,-500.0,0.00015068,2]
[323011471,1713587445255,-1210.93,0.00015068,2]
[323011472,1713587445265,-1273.58,0.00015068,2]
[323011473,1713587445274,-901.35,0.00015068,2]
[323011474,1713587445284,-500.0,0.00015068,2]
[323011475,1713587445293,-500.0,0.00015068,2]
[323011476,1713587445302,-1402.0,0.00015068,2]
[323011477,1713587445313,-500.0,0.00015068,2]
[323011478,1713587445322,-1486.93,0.00015068,2]
[323011479,1713587445331,-1106.04,0.00015068,2]
[323011480,1713587445340,-500.0,0.00015068,2]
[323011481,1713587445350,-500.0,0.00015068,2]
[323011482,1713587445359,-573.74,0.00015068,2]
[323011483,1713587445368,-789.63,0.00015068,2]
[323011484,1713587445378,-1564.55,0.00015068,2]
[323011485,1713587445387,-500.0,0.00015068,2]
[323011486,1713587445397,-500.0,0.00015068,2]
[323011487,1713587445406,-500.0,0.00015068,2]
[323011488,1713587445416,-3895.74,0.00015068,2]
[323011489,1713587445425,-675.27,0.00015068,2]
[323011491,1713587445434,-585.20477983,0.00015068,2]
[323011493,1713587445443,-500.0,0.00015068,2]
[323011495,1713587445452,-790.52,0.00015068,2]
[323011496,1713587445461,-500.0,0.00015068,2]
[323011498,1713587445470,-500.0,0.00015068,2]
[323011500,1713587445480,-500.0,0.00015068,2]
[323011502,1713587445489,-500.0,0.00015068,2]
[323011504,1713587445498,-2112.95,0.00015068,2]
[323011506,1713587445508,-2364.44,0.00015068,2]
[323011508,1713587445517,-500.50235361,0.00015068,2]
[323011509,1713587445527,-748.48,0.00015068,2]
[323011511,1713587445536,-1435.58,0.00015068,2]
[323011513,1713587445545,-556.51,0.00015068,2]
[323011514,1713587445555,-523.09,0.00015068,2]
[323011515,1713587445566,-1656.08,0.00015068,2]
[323011516,1713587445575,-500.0,0.00015068,2]
[323011517,1713587445584,-655.53,0.00015068,2]
[323011518,1713587445594,-500.0,0.00015068,2]
[323011519,1713587445604,-500.0,0.00015068,2]
[323011520,1713587445614,-4315.94,0.00015068,2]
[323011521,1713587445623,-672.5,0.00015068,2]
[323011522,1713587445632,-500.0,0.00015068,2]
[323011523,1713587445641,-765.98,0.00015068,2]
[323011524,1713587445650,-500.0,0.00015068,2]
[323011525,1713587445659,-575.43,0.00015068,2]
[323011526,1713587445669,-500.0,0.00015068,2]
[323011527,1713587445678,-500.0,0.00015068,2]
[323011528,1713587445689,-1968.17,0.00015068,2]
[323011529,1713587445700,-773.4,0.00015068,2]
[323011530,1713587445709,-500.0,0.00015068,2]
[323011531,1713587445718,-764.26118379,0.00015068,2]
[323011532,1713587446294,-762.39881621,0.00015068,2]
[323011533,1713587446303,-500.0,0.00015068,2]
[323011534,1713587446314,-1041.64,0.00015068,2]
[323011535,1713587446323,-1427.26,0.00015068,2]
[323011536,1713587446332,-6100.04,0.00015068,2]
[323011537,1713587446341,-2016.58,0.00015068,2]
[323011538,1713587446351,-634.05,0.00015068,2]
[323011539,1713587446360,-703.98,0.00015068,2]
[323011540,1713587446369,-500.0,0.00015068,2]
[323011541,1713587446379,-3648.05,0.00015068,2]
[323011542,1713587446387,-686.48,0.00015068,2]
[323011543,1713587446396,-500.0,0.00015068,2]
[323011544,1713587446406,-4851.48,0.00015068,2]
[323011545,1713587446415,-500.0,0.00015068,2]
[323011546,1713587446424,-500.0,0.00015068,2]
[323011547,1713587446433,-4944.58,0.00015068,2]
[323011548,1713587446443,-4148.44,0.00015068,2]
[323011549,1713587446452,-161.44,0.00015068,2]
[323011550,1713587446462,-348.13,0.00015068,2]
[323011551,1713587446472,-518.75,0.00015068,2]
[323011552,1713587446485,-156.27,0.00015071,2]
[323011553,1713587446494,-521.81,0.00015078,2]
[323011554,1713587446504,-150.0,0.00015078,2]
[323011555,1713587446516,-150.0,0.00015078,2]
[323011556,1713587446525,-150.0,0.00015078,2]
[323011557,1713587446535,-350.29,0.00015078,2]
[323011558,1713587446544,-162.7,0.00015078,2]
[323011559,1713587446553,-521.81,0.00015078,2]
[323011560,1713587446563,-150.0,0.00015078,2]
[323011561,1713587446573,-418.94,0.00015078,2]
[323011562,1713587446582,-150.0,0.00015078,2]
[323011563,1713587446591,-162.7,0.00015078,2]
[323011564,1713587446601,-350.29,0.00015078,2]
[323011565,1713587446610,-150.0,0.00015078,2]
[323011566,1713587446619,-150.0,0.00015078,2]
[323011567,1713587446718,-521.81,0.00015078,2]
[323011568,1713587446728,-418.94,0.00015078,2]
[323011569,1713587446738,-150.0,0.00015078,2]
[323011570,1713587446748,-150.0,0.00015078,2]
[323011571,1713587446756,-350.29,0.00015078,2]
[323011572,1713587446767,-162.7,0.00015078,2]
[323011573,1713587446776,-521.81,0.00015078,2]
[323011574,1713587446786,-150.0,0.00015078,2]
[323011575,1713587446795,-418.94,0.00015078,2]
[323011576,1713587446804,-150.0,0.00015078,2]
[323011577,1713587446816,-150.0,0.00015078,2]
[323011578,1713587446825,-350.29,0.00015078,2]
[323011579,1713587446833,-162.7,0.00015078,2]
[323011580,1713587446843,-521.81,0.00015078,2]
[323011581,1713587446851,-418.94,0.00015078,2]
[323011582,1713587446860,-150.0,0.00015078,2]
[323011583,1713587446870,-162.7,0.00015078,2]
[323011584,1713587446879,-350.29,0.00015078,2]
[323011585,1713587446890,-150.0,0.00015078,2]
[323011586,1713587446899,-150.0,0.00015078,2]
[323011587,1713587446908,-418.94,0.00015078,2]
[323011588,1713587446917,-521.81,0.00015078,2]
[323011589,1713587446927,-350.29,0.00015078,2]
[323011590,1713587446937,-150.0,0.00015078,2]
[323011591,1713587446947,-300.0,0.00015078,2]
[323011592,1713587446955,-162.7,0.00015078,2]
[323011593,1713587446965,-835.45,0.00015078,2]
[323011594,1713587446974,-521.81,0.00015078,2]
[323011595,1713587446983,-150.0,0.00015078,2]
[323011596,1713587446992,-162.7,0.00015078,2]
[323011597,1713587447001,-350.29,0.00015078,2]
[323011598,1713587447010,-521.81,0.00015078,2]
[323011599,1713587447018,-150.0,0.00015078,2]
[323011600,1713587447027,-162.7,0.00015078,2]
[323011601,1713587447036,-350.29,0.00015078,2]
[323011602,1713587447045,-150.0,0.00015078,2]
[323011603,1713587447054,-170.80495529,0.00015101,2]
[323011604,1713587447064,-412.51,0.00015177,2]
[323011605,1713587447072,-924.7,0.00015177,2]
[323011606,1713587447081,-1140.9,0.00015177,2]
[323011607,1713587447090,-557.17,0.00015177,2]
[323011608,1713587447099,-3136.0,0.000152,2]
[323011609,1713587447109,-748.0,0.000152,2]
[323011610,1713587447118,-170.80495529,0.00015234,2]
[323011611,1713587447127,-10000.0,0.00015242,2]
[323011612,1713587447137,-10893.3592275,0.00015242,2]
[323011613,1713587447145,-195.31132247,0.00015242,2]
[323011614,1713587447154,-167.84639331,0.00015242,2]
[323011615,1713587447163,-500.24077008,0.00015342,2]
[323011616,1713587447172,-579.23,0.00015342,2]
[323011617,1713587447182,-653.79,0.00015342,2]
[323011618,1713587447191,-500.0,0.00015342,2]
[323011619,1713587447200,-500.0,0.00015342,2]
[323011620,1713587447209,-626.29,0.00015342,2]
[323011621,1713587447217,-500.0,0.00015342,2]
[323011622,1713587447226,-500.0,0.00015342,2]
[323011623,1713587447235,-749.52,0.00015342,2]
[323011624,1713587447244,-500.0,0.00015342,2]
[323011625,1713587447253,-1197.38,0.00015342,2]
[323011626,1713587447262,-258.37449766,0.00015342,2]
[323011627,1713587447271,-500.0,0.00015342,2]
[323011628,1713587447280,-870.47,0.00015342,2]
[323011629,1713587447291,-515.67,0.00015342,2]
[323011630,1713587447300,-500.0,0.00015342,2]
[323011631,1713587447310,-500.0,0.00015342,2]
[323011632,1713587447319,-500.0,0.00015342,2]
[323011633,1713587447327,-909.57,0.00015342,2]
[323011634,1713587447336,-507.78,0.00015342,2]
[323011635,1713587447346,-536.28,0.00015342,2]
[323011636,1713587447357,-500.0,0.00015342,2]
[323011637,1713587447369,-500.0,0.00015342,2]